bitfinex/quotes_ETHUSD_20250722
["timestamp","ask_amount","ask_price","bid_price","bid_amount"]
[1753165321393,2.69223076,3714.4,3713.7,0.24752364]
[1753165321549,2.69182719,3715.0,3714.2,2.69236616]
[1753165321752,4.379,3714.9,3714.3,0.24752364]
[1753165321953,4.379,3714.9,3714.4,0.24752364]
[1753165322186,4.379,3714.9,3714.5,0.24752364]
[1753165322385,2.6913335,3715.7,3713.9,2.6925844]
[1753165322386,2.69157453,3715.3,3714.6,0.24752364]
[1753165322694,4.379,3715.2,3714.7,0.24752364]
[1753165322858,4.379,3715.2,3714.8,0.24752364]
[1753165322859,3.16321758,3715.1,3714.8,0.24752364]
[1753165323059,0.4715,3715.1,3714.9,0.24752364]
[1753165323262,7.07065213,3715.2,3715.0,0.24752364]
[1753165323465,7.07065213,3715.2,3715.1,0.24752364]
[1753165323774,4.379,3715.2,3714.4,0.7762]
[1753165323978,4.379,3715.2,3714.5,0.24812834]
[1753165323979,2.6916991,3715.2,3714.5,0.24812834]
[1753165324155,4.378,3715.1,3714.6,0.24812834]
[1753165324356,4.378,3715.1,3714.7,0.24812834]
[1753165324597,2.69184401,3715.0,3714.8,0.24812834]
[1753165324888,2.69184401,3715.0,3714.9,0.24812834]
[1753165325085,7.06684401,3715.0,3714.9,0.24812834]
[1753165325390,4.375,3715.0,3714.9,0.24812834]
[1753165325771,8.08629004,3715.0,3714.9,0.24812834]
[1753165325976,8.08529004,3715.0,3714.9,0.24812834]
[1753165327294,8.88179004,3715.0,3714.9,0.24812834]
[1753165327859,4.50979004,3715.0,3714.9,0.24812834]
[1753165328066,8.87879004,3715.0,3714.9,0.24812834]
[1753165328257,23.37879004,3715.0,3714.9,0.24812834]
[1753165329058,18.53829004,3715.0,3714.9,0.24812834]
[1753165329255,2.69179004,3715.0,3714.9,0.24812834]
[1753165329461,7.05679004,3715.0,3714.9,0.24812834]
[1753165330089,4.366,3715.0,3714.9,0.24812834]
[1753165330291,7.60779004,3715.0,3714.9,0.24812834]
[1753165330877,8.07929004,3715.0,3714.9,0.24812834]
[1753165331214,8.07629004,3715.0,3714.9,0.24812834]
[1753165332801,8.87349004,3715.0,3714.9,0.24812834]
[1753165334496,23.36749004,3715.0,3714.9,0.24812834]
[1753165334702,23.36349004,3715.0,3714.9,0.24812834]
[1753165335390,18.53899004,3715.0,3714.9,0.24812834]
[1753165335599,23.36349004,3715.0,3714.9,0.24812834]
[1753165336632,2.69273209,3713.8,3713.6,0.001]
[1753165336793,7.04173231,3713.7,3713.6,0.001]
[1753165336994,7.59173231,3713.7,3713.6,0.001]
[1753165339537,8.05923231,3713.7,3713.6,0.001]
[1753165340116,8.89193231,3713.7,3713.6,0.001]
[1753165340410,3.2433125,3712.9,3712.8,0.001]
[1753165340623,7.5853125,3712.9,3712.8,0.001]
[1753165341005,8.8855125,3712.9,3712.8,0.001]
[1753165341712,23.3855125,3712.9,3712.8,0.001]
[1753165342105,23.3825125,3712.9,3712.8,0.001]
[1753165343803,3.24382037,3712.2,3711.4,0.7681]
[1753165344108,3.24382037,3712.2,3711.1,0.4332]
[1753165344109,7.58082037,3712.2,3711.1,0.4332]
[1753165344302,8.04832037,3712.2,3711.1,0.4332]
[1753165346506,8.80742037,3712.2,3710.9,0.4332]
[1753165346708,8.33392037,3712.2,3711.0,2.69468415]
[1753165347017,22.83392037,3712.2,3711.3,0.4332]
[1753165347447,18.50292037,3712.2,3711.3,0.4332]
[1753165347614,22.83192037,3712.2,3711.3,0.4332]
[1753165348128,17.74382037,3712.2,3711.7,0.8246]
[1753165348307,18.827,3712.2,3711.7,0.8246]
[1753165348504,21.52082037,3712.2,3711.7,0.8246]
[1753165348705,21.52082037,3712.2,3712.1,0.24806195]
[1753165349050,23.36252037,3712.2,3712.1,0.24806195]
[1753165349343,22.89502037,3712.2,3712.1,0.24806195]
[1753165349546,18.56802037,3712.2,3712.1,0.24806195]
[1753165349719,22.89402037,3712.2,3712.1,0.24806195]
[1753165350120,17.74382037,3712.2,3712.1,0.24806195]
[1753165350324,22.06982037,3712.2,3712.1,0.24806195]
[1753165350943,17.74382037,3712.2,3712.1,0.24806195]
[1753165351121,22.06782037,3712.2,3712.1,0.24806195]
[1753165351323,14.5,3712.2,3712.1,0.24806195]
[1753165351653,22.06582037,3712.2,3712.1,0.24806195]
[1753165351945,17.19382037,3712.2,3712.1,0.24806195]
[1753165352112,4.872,3712.2,3712.1,0.24806195]
[1753165352312,4.872,3712.2,3712.1,0.2477689]
[1753165352612,0.55,3712.2,3712.1,0.2477689]
[1753165352813,4.871,3712.2,3712.1,0.2477689]
[1753165353414,4.869,3712.2,3712.1,0.2477689]
[1753165353614,7.56282037,3712.2,3712.1,0.2477689]
[1753165354109,4.869,3712.2,3712.1,0.2477689]
[1753165354540,7.55982037,3712.2,3712.1,0.2477689]
[1753165355015,7.55882037,3712.2,3712.1,0.2477689]
[1753165355216,7.55882037,3712.2,3712.1,0.24774531]
[1753165355461,0.55,3712.2,3712.1,0.24774531]
[1753165355752,4.314,3712.2,3712.1,0.68094531]
[1753165356056,4.4484,3712.2,3712.1,1.480345]
[1753165356443,0.1344,3712.2,3712.1,1.480345]
[1753165356614,4.4484,3712.2,3712.1,1.480345]
[1753165357016,4.4474,3712.2,3712.1,1.480345]
[1753165357970,0.1344,3712.2,3712.1,4.59167598]
[1753165358129,4.312,3712.2,3712.1,1.89778304]
[1753165358334,0.1344,3712.8,3712.1,1.614745]
[1753165358543,4.31,3712.7,3712.4,2.69361538]
[1753165358757,4.31,3712.7,3712.5,3.37353847]
[1753165358927,4.31,3712.7,3712.6,0.679945]
[1753165360160,0.1344,3712.8,3712.6,0.679945]
[1753165360320,4.308,3712.7,3712.6,2.69353014]
[1753165360519,0.1344,3712.8,3712.7,2.69345759]
[1753165360723,0.1344,3712.8,3712.7,3.5037727]
[1753165360959,6.463,3713.7,3713.0,2.69322265]
[1753165361260,0.1344,3713.2,3713.1,0.68011042]
[1753165361557,4.4394,3713.2,3713.1,0.68011042]
[1753165361762,0.1344,3713.2,3713.1,0.68011042]
[1753165362059,4.4394,3713.2,3713.1,0.68011042]
[1753165364288,4.301,3713.5,3713.1,1.64071042]
[1753165364458,0.1344,3713.8,3713.7,2.69273231]
[1753165364665,4.4354,3713.8,3713.7,0.68011042]
[1753165365048,0.002,3714.9,3713.7,4.50631042]
[1753165365247,0.002,3714.9,3714.5,2.69215237]
[1753165365556,4.309,3714.9,3714.6,0.24691042]
[1753165365868,4.309,3714.9,3714.7,0.24691042]
[1753165366068,4.309,3714.9,3714.8,0.24691042]
[1753165366271,0.002,3714.9,3714.8,0.24691042]
[1753165366488,4.308,3714.9,3714.8,0.24691042]
[1753165366676,4.308,3714.9,3714.8,0.68011042]
[1753165366869,4.308,3714.9,3714.8,0.24691042]
[1753165367077,4.308,3714.9,3714.8,0.2469934]
[1753165367450,4.308,3714.9,3714.8,0.6807934]
[1753165367886,4.308,3714.9,3714.8,0.2469934]
[1753165368784,7.54986249,3714.9,3714.8,0.2469934]
[1753165370261,7.98166249,3714.9,3714.8,0.2469934]
[1753165372758,8.80246249,3714.9,3714.8,0.2469934]
[1753165373568,0.55,3714.8,3713.4,0.4338]
[1753165373773,2.69271921,3713.8,3713.5,0.24642725]
[1753165373982,6.98373231,3713.7,3713.6,0.24642725]
[1753165374189,4.291,3713.7,3713.6,0.24642725]
[1753165374783,6.98373231,3713.7,3713.6,0.24642725]
[1753165374987,7.53373231,3713.7,3713.6,0.24642725]
[1753165375464,4.291,3713.7,3713.6,0.68022725]
[1753165375659,0.55,3713.9,3713.6,0.68022725]
[1753165375858,0.55,3713.9,3713.2,0.819]
[1753165375859,4.839,3713.8,3713.7,0.24642725]
[1753165376098,0.1344,3713.9,3713.8,0.4338]
[1753165376269,0.1344,3713.9,3713.8,0.24642725]
[1753165376468,4.4234,3713.9,3713.8,0.24642725]
[1753165377097,0.1344,3713.9,3713.8,0.68022725]
[1753165377299,4.4214,3713.9,3713.8,1.50422725]
[1753165377484,0.1344,3714.1,3713.8,1.92392194]
[1753165377687,4.287,3714.0,3713.9,0.68022725]
[1753165378025,0.1344,3714.1,3713.9,0.68022725]
[1753165378165,4.286,3714.0,3713.8,1.27062128]
[1753165378499,4.286,3714.1,3714.0,2.6925148]
[1753165378697,4.286,3714.2,3714.1,2.69242022]
[1753165378902,4.286,3714.2,3714.1,3.3728729]
[1753165379274,0.1344,3714.4,3714.1,0.68043059]
[1753165379478,4.286,3714.3,3714.2,0.68043059]
[1753165379917,4.283,3714.3,3714.2,0.68043059]
[1753165380207,4.283,3714.3,3714.2,0.81483059]
[1753165380985,4.284,3714.3,3714.2,0.81497689]
[1753165381185,4.283,3714.3,3714.2,0.68057689]
[1753165381705,4.283,3714.3,3714.2,0.24677689]
[1753165381905,7.52529733,3714.3,3714.2,0.24677689]
[1753165382105,7.95709733,3714.3,3714.2,0.24677689]
[1753165382490,7.52529733,3714.3,3714.2,0.24677689]
[1753165383190,4.833,3714.3,3714.2,0.24677689]
[1753165383402,0.8216,3714.5,3714.2,0.24677689]
[1753165383715,0.1344,3714.6,3714.4,0.7815]
[1753165384025,0.1364,3714.9,3714.5,0.82678458]
[1753165384226,0.1364,3714.9,3714.6,0.24677689]
[1753165384376,0.1364,3714.9,3714.7,0.24677689]
[1753165384581,2.82826249,3714.9,3714.8,0.24677689]
[1753165385023,7.66026249,3714.9,3714.8,0.24677689]
[1753165385313,8.91876249,3714.9,3714.8,0.24677689]
[1753165385531,8.48696249,3714.9,3714.8,0.24677689]
[1753165386627,8.91876249,3714.9,3714.8,0.24677689]
[1753165387532,4.20496249,3714.9,3714.8,0.24677689]
[1753165387723,8.48396249,3714.9,3714.8,0.24677689]
[1753165388234,8.48296249,3714.9,3714.8,0.24677689]
[1753165388431,8.91476249,3714.9,3714.8,0.24677689]
[1753165390096,8.48296249,3714.9,3714.8,0.24677689]
[1753165390301,8.91476249,3714.9,3714.8,0.24677689]
[1753165392237,8.47796249,3714.9,3714.8,0.24677689]
[1753165392802,8.90976249,3714.9,3714.8,0.24677689]
[1753165396627,8.47796249,3714.9,3714.8,0.24677689]
[1753165396835,4.20496249,3714.9,3714.8,0.24677689]
[1753165397023,8.46896249,3714.9,3714.8,0.24677689]
[1753165397738,8.46896249,3714.9,3714.8,0.24357215]
[1753165398241,7.64226249,3714.9,3714.8,0.24357215]
[1753165398544,4.3974,3714.9,3714.8,0.24357215]
[1753165398911,0.6864,3714.9,3714.8,0.24357215]
[1753165399113,4.9474,3714.9,3714.8,0.24357215]
[1753165399837,7.63926249,3714.9,3714.8,0.24357215]
[1753165400212,8.09996249,3714.9,3714.8,0.24357215]
[1753165400851,7.63926249,3714.9,3714.8,0.24357215]
[1753165401015,8.09996249,3714.9,3714.8,0.24357215]
[1753165401747,8.85476249,3714.9,3714.8,0.24357215]
[1753165403161,4.13306249,3714.9,3714.8,0.24357215]
[1753165403474,8.39106249,3714.9,3714.8,0.24357215]
[1753165403966,8.38906249,3714.9,3714.8,0.24357215]
[1753165404946,4.13306249,3714.9,3714.8,0.24357215]
[1753165405267,3.37826249,3714.9,3714.8,0.24357215]
[1753165405440,7.63126249,3714.9,3714.8,0.24357215]
[1753165405832,8.09196249,3714.9,3714.8,0.24357215]
[1753165406037,8.09096249,3714.9,3714.8,0.24357215]
[1753165406559,3.83896249,3714.9,3714.8,0.24357215]
[1753165406754,8.09096249,3714.9,3714.8,0.24357215]
[1753165406982,8.86196249,3714.9,3714.8,0.24357215]
[1753165407644,8.86196249,3714.9,3713.4,3.46730821]
[1753165407645,0.55,3713.6,3713.4,1.2367]
[1753165407833,4.801,3713.5,3713.4,0.7744]
[1753165408035,0.6844,3713.4,3713.1,1.2698]
[1753165408247,0.1344,3713.2,3713.1,1.2698]
[1753165408742,0.6844,3713.2,3713.1,1.2698]
[1753165409575,0.6844,3713.2,3712.9,0.4623]
[1753165409772,0.55,3713.0,3712.9,0.4623]
[1753165410191,0.55,3713.1,3712.9,0.4623]
[1753165410366,0.1344,3712.9,3712.8,0.805]
[1753165410537,0.6844,3712.9,3712.8,0.805]
[1753165411172,0.6844,3712.9,3712.8,1.2673]
[1753165411737,0.6844,3712.9,3712.5,0.8067]
[1753165411935,0.1344,3712.7,3712.6,0.4123]
[1753165412136,0.55,3712.6,3712.5,0.8067]
[1753165412345,4.795,3712.6,3712.4,0.06682092]
[1753165412874,0.13783417,3714.3,3712.5,0.7511]
[1753165413115,0.72113358,3715.5,3713.9,0.7511]
[1753165413374,4.269,3714.9,3713.9,0.7511]
[1753165413577,2.69199512,3714.8,3713.9,3.44366103]
[1753165413779,0.002,3714.9,3714.0,2.69250231]
[1753165413955,4.268,3714.7,3713.9,0.7511]
[1753165414144,0.55,3714.6,3714.1,0.4623]
[1753165414361,4.268,3714.7,3714.2,0.4623]
[1753165414888,0.55,3714.6,3714.2,0.4623]
[1753165415089,0.55,3714.4,3714.2,0.4623]
[1753165415266,0.55,3714.4,3714.0,2.69251109]
[1753165415461,0.55,3714.4,3714.3,0.4623]
[1753165415665,0.55,3714.4,3714.0,0.4623]
[1753165415857,0.55,3714.4,3713.9,0.7511]
[1753165416058,0.55,3714.4,3713.9,1.2134]
[1753165416392,0.55,3714.4,3713.9,0.7511]
[1753165416594,0.55,3714.4,3714.0,0.4623]
[1753165417254,4.263,3714.3,3714.0,0.4623]
[1753165417569,4.263,3714.3,3713.9,0.7511]
[1753165417772,4.263,3714.3,3714.1,0.4623]
[1753165418917,4.263,3714.3,3713.9,0.7511]
[1753165419205,4.263,3714.3,3714.0,3.15474926]
[1753165419360,4.263,3714.3,3714.0,2.69244926]
[1753165419559,4.263,3714.3,3714.1,3.15467866]
[1753165419753,4.813,3714.3,3714.2,0.71036435]
[1753165420858,0.002,3714.9,3714.3,0.8189]
[1753165421071,4.26,3714.9,3714.6,2.69205926]
[1753165421291,4.26,3714.9,3714.7,0.24811798]
[1753165421492,4.26,3714.9,3714.8,0.24811798]
[1753165421896,4.26,3714.9,3714.8,0.71041798]
[1753165422284,4.269,3714.9,3714.8,0.71041798]
[1753165422591,4.819,3714.9,3714.8,0.24811798]
[1753165424700,7.51086249,3714.9,3714.8,0.24811798]
[1753165425064,4.819,3714.9,3714.8,0.24811798]
[1753165425596,7.51086249,3714.9,3714.8,0.24811798]
[1753165426791,7.51086249,3714.9,3714.3,0.8189]
[1753165426792,0.6844,3714.8,3714.3,0.8189]
[1753165426993,0.1344,3714.5,3714.4,0.24785386]
[1753165427303,4.3944,3714.5,3714.4,0.24785386]
[1753165427672,4.9444,3714.5,3714.4,0.24785386]
[1753165428401,0.002,3714.9,3714.4,2.94007871]
[1753165428703,4.257,3714.8,3714.5,3.72635284]
[1753165428897,4.257,3714.8,3714.6,3.39163224]
[1753165429104,4.257,3714.8,3714.7,0.69955386]
[1753165429801,4.257,3714.8,3714.7,0.69949961]
[1753165430419,4.257,3714.8,3714.7,3.39150703]
[1753165430570,4.257,3714.8,3714.7,0.69949961]
[1753165431904,4.257,3714.8,3714.7,0.24779961]
[1753165432685,0.552,3714.9,3714.7,0.24779961]
[1753165432892,0.552,3714.9,3714.8,0.24774364]
[1753165433195,4.809,3714.9,3714.8,0.24774364]
[1753165434381,0.552,3714.9,3714.8,0.24774364]
[1753165434580,0.002,3714.9,3714.8,3.3913786]
[1753165434805,4.256,3714.9,3714.8,4.1415786]
[1753165435574,4.256,3714.9,3714.8,4.2759786]
[1753165435772,0.002,3714.9,3714.8,4.2759786]
[1753165436102,4.255,3714.9,3714.8,4.2759786]
[1753165437919,4.205,3714.9,3714.8,4.2759786]
[1753165439090,0.002,3715.3,3714.8,1.58404364]
[1753165439289,4.248,3715.2,3714.9,0.24774364]
[1753165439507,4.248,3715.2,3715.0,3.39121596]
[1753165439792,4.248,3715.2,3715.1,2.93946122]
[1753165440296,4.248,3715.2,3715.1,0.24774364]
[1753165440893,4.798,3715.2,3715.1,0.24774364]
[1753165442640,4.798,3715.2,3715.1,2.93946122]
[1753165442926,0.1344,3715.9,3715.1,1.53061301]
[1753165443149,4.246,3715.8,3715.4,2.69146247]
[1753165443336,0.55,3715.7,3715.5,0.24774364]
[1753165443551,0.55,3715.7,3715.6,0.24774364]
[1753165443702,0.55,3715.8,3715.6,0.24774364]
[1753165443912,0.55,3715.8,3715.7,0.24774364]
[1753165444094,0.55,3715.8,3715.7,0.24804056]
[1753165444095,4.244,3715.8,3715.7,0.24804056]
[1753165444299,4.794,3715.8,3715.7,3.39102349]
[1753165444650,0.1344,3715.9,3715.8,2.6912105]
[1753165444798,2.69033784,3717.1,3715.8,1.38380111]
[1753165444998,0.1344,3716.7,3716.0,0.1344]
[1753165445220,4.243,3716.6,3716.1,0.24804056]
[1753165445420,4.243,3716.6,3716.2,2.9389437]
[1753165445696,4.243,3716.6,3716.3,0.24804056]
[1753165445891,4.243,3716.6,3716.4,0.24804056]
[1753165446096,0.55,3716.5,3716.1,3.1426389]
[1753165446332,0.55,3716.5,3716.3,2.69084794]
[1753165446533,0.1344,3716.7,3716.0,2.82545558]
[1753165446534,0.55,3716.6,3716.4,0.24757811]
[1753165446738,0.1344,3716.7,3716.0,3.61375558]
[1753165446739,0.55,3716.4,3716.2,3.14255399]
[1753165446938,0.1344,3716.7,3716.3,0.24761277]
[1753165447142,0.55,3716.6,3716.4,0.69931277]
[1753165447342,4.791,3716.6,3716.5,0.24761277]
[1753165447945,5.2491,3716.6,3716.5,0.24761277]
[1753165448735,4.791,3716.6,3716.5,0.24761277]
[1753165450939,19.291,3716.6,3716.5,0.24761277]
[1753165451640,19.291,3716.6,3716.5,2.93831638]
[1753165451844,0.55,3716.6,3716.5,2.93831638]
[1753165452161,0.1344,3717.0,3716.8,2.69044589]
[1753165452453,15.1844,3717.0,3716.9,0.24761277]
[1753165453152,19.4164,3717.0,3716.9,0.24761277]
[1753165454021,19.8745,3717.0,3716.9,0.24761277]
[1753165454243,19.4164,3717.0,3716.9,0.24761277]
[1753165458051,19.4184,3717.0,3716.9,0.24761277]
[1753165458214,19.4104,3717.0,3716.9,0.24761277]
[1753165458837,0.6864,3717.0,3716.9,0.24761277]
[1753165459049,4.9094,3717.0,3716.9,0.24761277]
[1753165459350,4.9094,3717.0,3716.9,2.93802682]
[1753165459508,4.9094,3717.0,3716.9,0.24761277]
[1753165460548,0.6864,3717.0,3716.9,0.24761277]
[1753165460748,4.9084,3717.0,3716.9,0.24761277]
[1753165460910,4.9074,3717.0,3716.9,0.24761277]
[1753165462553,4.773,3717.0,3716.9,0.24761277]
[1753165462754,0.55,3715.8,3715.1,0.7731]
[1753165462974,18.721,3715.7,3715.2,2.69164234]
[1753165463256,0.55,3715.6,3715.2,0.4673]
[1753165463420,4.221,3715.5,3715.2,0.4673]
[1753165463821,4.221,3715.5,3715.2,3.15893967]
[1753165464022,4.221,3715.5,3715.2,0.4673]
[1753165464265,4.221,3715.5,3715.1,0.7731]
[1753165464424,0.55,3715.4,3715.1,0.001]
[1753165464824,3.24152199,3715.4,3715.1,0.001]
[1753165465021,3.24164513,3715.2,3715.1,0.001]
[1753165465687,0.55,3715.2,3715.1,0.001]
[1753165466378,3.24164513,3715.2,3715.1,0.001]
[1753165467455,3.65494513,3715.2,3715.1,0.001]
[1753165468225,3.24164513,3715.2,3715.1,0.001]
[1753165468736,3.65494513,3715.2,3715.1,0.001]
[1753165469148,18.92434513,3715.2,3715.1,0.001]
[1753165471762,18.92434513,3715.2,3715.1,1e-08]
[1753165474385,21.92434513,3715.2,3715.1,1e-08]
[1753165474557,3.99642485,3714.4,3714.3,0.001]
[1753165474872,8.20742485,3714.4,3714.3,0.2477579]
[1753165475255,23.12072485,3714.4,3714.3,0.2477579]
[1753165475473,3.24273231,3713.7,3713.6,0.001]
[1753165475644,7.45373231,3713.7,3713.6,0.001]
[1753165475985,8.23513231,3713.7,3713.6,0.001]
[1753165476487,8.64843231,3713.7,3713.6,0.001]
[1753165477047,23.14843231,3713.7,3713.6,0.001]
[1753165477871,26.14843231,3713.7,3713.6,0.001]
[1753165481352,21.93743231,3713.7,3713.6,0.001]
[1753165481552,26.14743231,3713.7,3713.6,0.001]
[1753165484897,3.24360269,3712.5,3712.4,0.06782092]
[1753165485188,7.45360269,3712.5,3712.4,0.001]
[1753165485594,25.74640269,3712.5,3712.3,0.001]
[1753165485756,25.74640269,3712.5,3712.3,1e-08]
[1753165485757,6.24367525,3712.4,3712.3,1e-08]
[1753165485971,6.65697525,3712.4,3712.3,1e-08]
[1753165486161,3.24382037,3712.2,3712.1,1e-08]
[1753165486360,10.45382037,3712.2,3712.1,1e-08]
[1753165486600,10.86712037,3712.2,3712.1,1e-08]
[1753165486761,3.24418325,3711.7,3711.6,0.001]
[1753165486954,7.45518325,3711.7,3711.6,0.001]
[1753165487192,8.24918325,3711.7,3711.6,0.001]
[1753165487410,8.24918325,3711.7,3711.6,0.24699131]
[1753165488457,3.24418325,3711.7,3711.6,0.24699131]
[1753165488661,4.211,3711.7,3711.6,0.70299131]
[1753165488862,6.90518325,3711.7,3711.6,0.70299131]
[1753165489099,7.45518325,3711.7,3711.6,0.70299131]
[1753165489261,7.45518325,3711.7,3711.6,0.24699131]
[1753165489456,7.86848325,3711.7,3711.6,0.24699131]
[1753165489692,8.28878325,3711.7,3711.6,0.24699131]
[1753165490759,3.24418325,3711.7,3711.6,0.24699131]
[1753165490958,4.216,3711.7,3711.6,0.70299131]
[1753165491159,7.2906,3712.5,3711.6,0.70299131]
[1753165491395,4.765,3712.4,3711.7,0.70199131]
[1753165491690,3.24411067,3711.8,3711.7,0.456]
[1753165491895,3.24411067,3711.8,3711.7,0.70211545]
[1753165492070,7.45911067,3711.8,3711.7,0.70211545]
[1753165492674,7.45911067,3711.8,3711.7,0.456]
[1753165492871,7.45911067,3711.8,3711.7,0.24627594]
[1753165493071,3.24418325,3711.7,3711.6,0.001]
[1753165493271,3.24418325,3711.7,3711.6,0.24732827]
[1753165493473,3.24418325,3711.7,3711.6,0.70332827]
[1753165493994,3.24418325,3711.7,3711.6,0.24732827]
[1753165495074,4.07228325,3711.7,3711.6,0.24732827]
[1753165497195,6.90618325,3711.7,3711.6,0.70332827]
[1753165497498,7.45618325,3711.7,3711.6,0.70332827]
[1753165498468,7.45618325,3711.7,3711.6,0.24732827]
[1753165498667,7.45618325,3711.7,3711.6,0.70332827]
[1753165499100,7.45618325,3711.7,3711.6,0.24732827]
[1753165499101,7.46018325,3711.7,3711.6,0.24732827]
[1753165499779,10.46018325,3711.7,3711.6,0.24732827]
[1753165499967,10.87348325,3711.7,3711.6,0.24732827]
[1753165500172,11.64758325,3711.7,3711.6,0.24732827]
[1753165500400,11.23428325,3711.7,3711.6,0.24732827]
[1753165501299,11.64758325,3711.7,3711.6,0.24732827]
[1753165501469,11.64758325,3711.7,3711.3,0.001]
[1753165501470,3.24440103,3711.4,3711.3,0.001]
[1753165501687,7.45840103,3711.4,3711.3,0.001]
[1753165502579,3.24440103,3711.4,3711.3,0.001]
[1753165502782,7.45840103,3711.4,3711.3,0.457]
[1753165502964,10.45840103,3711.4,3711.3,0.001]
[1753165503169,10.87170103,3711.4,3711.3,1e-08]
[1753165504304,11.64320103,3711.4,3711.3,1e-08]
[1753165504800,11.22990103,3711.4,3711.3,1e-08]
[1753165505702,11.64320103,3711.4,3711.3,1e-08]
[1753165506220,3.24476407,3710.9,3710.8,1e-08]
[1753165506402,11.22926407,3710.9,3710.8,1e-08]
[1753165506717,0.55,3709.2,3708.9,0.7656]
[1753165506884,3.24599913,3709.2,3709.1,0.456]
[1753165507071,7.45899913,3709.2,3709.1,0.456]
[1753165507272,2.69614451,3709.0,3708.9,0.7656]
[1753165507476,7.45914451,3709.0,3708.9,0.7656]
[1753165507974,3.24649857,3708.6,3708.5,1.2546]
[1753165508169,0.55,3708.3,3707.1,0.829]
[1753165508405,13.4816252,3708.6,3707.2,0.456]
[1753165508406,0.55,3708.1,3707.2,0.456]
[1753165508570,0.55,3707.5,3707.2,0.456]
[1753165508771,0.55,3707.3,3707.2,0.456]
[1753165508970,4.231,3707.4,3707.2,0.456]
[1753165509201,6.92832057,3707.4,3707.2,0.456]
[1753165509400,6.92832057,3707.4,3707.3,0.456]
[1753165509401,4.231,3707.4,3707.3,0.456]
[1753165510212,6.92830808,3707.4,3707.3,0.456]
[1753165510909,4.781,3707.4,3707.3,0.456]
[1753165512090,4.782,3707.4,3707.3,0.456]
[1753165513177,7.47930808,3707.4,3707.3,0.456]
[1753165513377,4.782,3707.4,3707.3,0.70342169]
[1753165514988,0.55,3707.4,3707.3,0.70342169]
[1753165515190,4.9134,3707.4,3707.3,0.70342169]
[1753165515938,7.61070808,3707.4,3707.3,0.70342169]
[1753165516243,7.61070808,3707.4,3707.3,0.24742169]
[1753165518289,3.24752636,3707.1,3707.0,0.001]
[1753165518492,7.47552636,3707.1,3707.0,0.001]
[1753165519230,10.47552636,3707.1,3707.0,0.001]
[1753165519632,11.25092636,3707.1,3707.0,0.001]
[1753165519998,10.47452636,3707.1,3707.0,0.001]
[1753165520693,6.24752636,3707.1,3707.0,0.001]
[1753165521230,10.47552636,3707.1,3707.0,0.001]
[1753165522914,10.47352636,3707.1,3707.0,0.001]
[1753165524916,3.24810862,3706.3,3706.2,0.001]
[1753165525215,7.47110862,3706.3,3706.2,0.001]
[1753165525743,8.22290862,3706.3,3706.2,0.001]
[1753165526044,7.47110862,3706.3,3706.2,0.001]
[1753165526206,3.24810862,3706.3,3706.2,0.001]
[1753165526401,0.55,3706.3,3706.2,0.4383]
[1753165526814,4.773,3706.3,3706.2,0.4383]
[1753165527018,0.55,3706.3,3706.2,0.68477657]
[1753165527248,6.472,3706.9,3706.3,2.69810862]
[1753165527543,4.3574,3706.8,3706.4,3.38165577]
[1753165527754,2.69695553,3707.9,3706.8,0.8288]
[1753165527755,0.7516,3707.9,3706.8,0.8288]
[1753165528046,0.7516,3707.9,3706.9,0.4373]
[1753165528047,0.1344,3707.1,3706.9,0.4373]
[1753165528253,4.227,3707.0,3706.9,0.4373]
[1753165528542,4.227,3707.0,3706.9,0.68372531]
[1753165528706,4.226,3707.0,3706.9,0.68372531]
[1753165529220,0.6844,3707.1,3707.0,2.69759913]
[1753165529420,4.9094,3707.1,3707.0,0.24642531]
[1753165529641,4.9094,3707.1,3707.0,0.68372531]
[1753165530241,7.60692636,3707.1,3707.0,0.24642531]
[1753165530440,0.6844,3707.1,3707.0,0.4373]
[1753165530642,4.9104,3707.1,3707.0,0.68388816]
[1753165531217,2.69642251,3708.7,3707.0,0.68388816]
[1753165531417,0.4133,3708.9,3707.3,0.7523]
[1753165531418,0.1344,3707.7,3707.3,0.7523]
[1753165531647,0.1344,3708.0,3707.4,0.81828816]
[1753165531947,2.69708984,3707.7,3706.9,0.4373]
[1753165532105,3.24752636,3707.1,3707.0,0.24667257]
[1753165532307,7.47652636,3707.1,3707.0,0.24667257]
[1753165532507,2.69759913,3707.0,3706.9,0.4373]
[1753165532773,0.55,3706.6,3706.3,0.7523]
[1753165533067,6.94502185,3706.5,3706.4,0.4373]
[1753165533210,4.247,3706.5,3706.4,0.4373]
[1753165533738,4.797,3706.5,3706.4,0.4373]
[1753165534743,7.49496303,3706.5,3706.4,0.4373]
[1753165535620,4.797,3706.5,3706.4,0.4373]
[1753165536511,4.797,3706.5,3706.4,0.68497584]
[1753165536732,0.55,3706.8,3706.4,0.68497584]
[1753165536933,0.55,3706.6,3706.5,0.68497584]
[1753165537110,4.792,3706.6,3706.5,0.68497584]
[1753165538246,4.24,3706.6,3706.5,0.68497584]
[1753165539259,4.24,3706.6,3706.5,0.68535044]
[1753165540512,4.24,3706.6,3706.5,1.09902594]
[1753165540711,4.24,3706.6,3706.5,0.68535044]
[1753165540912,6.472,3708.2,3706.6,0.8215]
[1753165541221,2.69694436,3707.9,3706.8,0.8215]
[1753165541459,6.93501709,3707.8,3707.0,2.69758269]
[1753165541748,4.238,3707.8,3707.1,3.38287197]
[1753165541908,0.1344,3707.7,3707.2,0.24805044]
[1753165542247,4.237,3707.6,3707.3,0.24805044]
[1753165542408,4.237,3707.6,3707.4,0.24805044]
[1753165542611,0.55,3707.6,3707.5,1.48815044]
[1753165542837,6.474,3708.2,3707.5,1.63696548]
[1753165543036,0.1344,3708.0,3707.6,0.68535044]
[1753165543210,0.1344,3708.0,3707.7,0.68535044]
[1753165543423,0.55,3707.9,3707.8,0.24805044]
[1753165543620,0.55,3707.9,3707.8,0.68535044]